bitfinex/quotes_SOLUSD_20250209
["timestamp","ask_amount","ask_price","bid_price","bid_amount"]
[1739064325212,18.84036932,201.92,201.88,1.6207]
[1739064325391,18.84036932,201.92,201.9,1.0]
[1739064325802,38.84036932,201.93,201.9,1.0]
[1739064325990,20.0,201.93,201.9,1.0]
[1739064326324,38.84036932,201.93,201.9,1.0]
[1739064326496,38.84036932,201.93,201.88,1.6207]
[1739064327319,38.84036932,201.93,201.9,1.0]
[1739064327320,4.9524,201.92,201.9,1.0]
[1739064327916,23.79276932,201.92,201.87,1.0]
[1739064328121,18.84036932,201.89,201.87,1.0]
[1739064328815,18.84036932,201.88,201.87,1.0]
[1739064328993,25.15486932,201.9,201.87,1.0]
[1739064329500,11.2674,201.9,201.89,1.0]
[1739064330220,6.3145,201.9,201.89,1.0]
[1739064330515,18.84036932,201.94,201.89,1.0]
[1739064330723,23.79226932,201.94,201.91,1.0]
[1739064332519,4.9519,201.94,201.91,1.0]
[1739064333517,23.79226932,201.94,201.91,1.0]
[1739064335117,4.9519,201.94,201.91,1.0]
[1739064335416,0.03,201.95,201.94,1.6207]
[1739064335621,0.03,201.95,201.94,20.46106932]
[1739064336816,0.03,201.95,201.94,1.6207]
[1739064337698,4.4807,201.99,201.98,1.0]
[1739064338621,6.3145,202.01,202.0,1.0]
[1739064339617,11.2647,202.01,201.98,1.0]
[1739064339813,18.84036932,202.0,201.98,1.0]
[1739064340419,4.9507,201.99,201.98,1.0]
[1739064342607,4.9504,202.0,201.98,1.0]
[1739064343718,0.03,201.99,201.98,1.0]
[1739064345505,0.03,201.99,201.92,0.6207]
[1739064345831,18.84036932,201.95,201.88,0.6207]
[1739064346010,18.84036932,201.94,201.88,0.6207]
[1739064346215,18.84036932,201.93,201.88,0.6207]
[1739064346414,18.84036932,201.92,201.86,0.6207]
[1739064346721,18.84036932,201.93,201.86,19.46106932]
[1739064347226,4.9524,201.92,201.86,19.46106932]
[1739064348126,18.84036932,201.94,201.87,18.84036932]
[1739064348329,17.331,201.95,201.87,18.84036932]
[1739064348330,4.9517,201.95,201.9,0.6207]
[1739064348633,4.9517,201.95,201.9,19.46106932]
[1739064349204,24.9517,201.95,201.9,19.46106932]
[1739064350234,24.9517,201.95,201.9,0.6207]
[1739064350531,24.9517,201.95,201.9,19.46106932]
[1739064351523,24.9517,201.95,201.9,0.6207]
[1739064353539,4.9517,201.95,201.9,0.6207]
[1739064353707,18.84036932,201.95,201.9,0.6207]
[1739064354629,11.78602355,201.95,201.9,0.6207]
[1739064355129,11.78602355,201.94,201.9,0.6207]
[1739064355335,11.78602355,201.92,201.89,0.063]
[1739064355834,11.78602355,201.91,201.89,0.063]
[1739064357530,4.9529,201.91,201.89,0.063]
[1739064358629,4.9524,201.92,201.89,0.063]
[1739064358931,16.73842355,201.92,201.89,0.063]
[1739064359308,4.9524,201.92,201.89,0.063]
[1739064361134,6.4816,201.93,201.89,0.063]
[1739064361338,4.9514,201.96,201.91,12.40672355]
[1739064362337,4.9512,201.97,201.91,12.40672355]
[1739064362723,16.73722355,201.97,201.91,12.40672355]
[1739064363123,20.0,201.96,201.94,11.78602355]
[1739064363821,4.9512,201.97,201.94,12.40672355]
[1739064364223,4.9509,201.98,201.94,0.6207]
[1739064364425,0.03,201.99,201.96,12.40672355]
[1739064364639,0.03,201.99,201.96,0.6207]
[1739064366939,20.0,201.97,201.92,0.6207]
[1739064367233,20.0,201.93,201.89,0.063]
[1739064367441,11.78602355,201.91,201.89,0.063]
[1739064368515,11.78602355,201.92,201.89,0.063]
[1739064369023,11.78602355,201.93,201.89,0.063]
[1739064370616,4.9524,201.92,201.89,0.063]
[1739064373245,20.46351741,201.96,201.9,0.6207]
[1739064373452,4.9514,201.96,201.91,18.86371741]
[1739064373821,4.9514,201.96,201.92,0.6207]
[1739064374549,20.0,201.97,201.92,0.6207]
[1739064376651,0.03,201.99,201.93,18.86371741]
[1739064376833,4.9509,201.98,201.95,18.86371741]
[1739064377442,24.9509,201.98,201.94,0.6207]
[1739064377845,24.9509,201.98,201.92,19.48441741]
[1739064378755,24.9509,201.98,201.93,18.86371741]
[1739064378927,0.03,201.99,201.95,18.86371741]
[1739064379126,0.03,201.99,201.98,18.86371741]
[1739064379327,0.03,201.99,201.98,19.48441741]
[1739064380056,0.03,201.99,201.98,0.6207]
[1739064383459,0.03,201.99,201.98,19.48441741]
[1739064386692,0.03,201.99,201.96,19.48441741]
[1739064386841,0.03,201.99,201.96,0.6207]
[1739064387632,0.03,201.99,201.96,19.48441741]
[1739064388267,0.03,201.99,201.98,19.48441741]
[1739064388763,0.03,201.99,201.98,24.43531741]
[1739064392662,0.03,201.99,201.98,17.34535215]
[1739064396284,0.03,201.99,201.94,0.6207]
[1739064396988,11.80375215,201.99,201.94,0.6207]
[1739064397180,11.80375215,201.99,201.97,0.6207]
[1739064397181,0.03,201.99,201.97,0.6207]
[1739064397486,0.03,201.99,201.98,11.77375215]
[1739064398385,0.03,201.99,201.98,17.46715762]
[1739064398560,0.03,201.99,201.98,16.72465215]
[1739064399270,0.03,201.99,201.98,11.77375215]
[1739064403167,0.03,201.99,201.97,0.6207]
[1739064403778,0.03,201.99,201.98,11.77375215]
[1739064404576,0.03,201.99,201.98,12.51618853]
[1739064405286,0.03,201.99,201.98,17.46708853]
[1739064405458,0.03,201.99,201.98,21.05824178]
[1739064406580,0.03,201.99,201.98,17.46708853]
[1739064407164,0.03,201.99,201.97,0.6207]
[1739064407477,0.03,201.99,201.95,11.77375215]
[1739064407478,11.80375215,201.99,201.95,0.6207]
[1739064407680,11.80375215,201.99,201.93,0.6207]
[1739064407883,11.77375215,201.98,201.93,0.6207]
[1739064408992,16.72485215,201.98,201.93,0.6207]
[1739064409363,4.9511,201.98,201.93,0.6207]
[1739064412989,4.9511,201.98,201.93,12.39445215]
[1739064413195,4.9807,201.99,201.93,12.39445215]
[1739064413566,4.9807,201.99,201.93,12.45745215]
[1739064414694,16.75445215,201.99,201.93,0.6837]
[1739064416797,16.75445215,201.99,201.93,12.45745215]
[1739064417982,0.03,201.99,201.93,12.45745215]
[1739064418795,19.48555215,201.98,201.93,0.063]
[1739064419096,11.77375215,201.97,201.93,0.063]
[1739064419896,0.03,201.99,201.94,11.77375215]
[1739064420295,0.03,201.99,201.93,0.6837]
[1739064420296,0.03,201.99,201.93,12.45745215]
[1739064420969,11.80375215,201.99,201.93,0.6837]
[1739064421197,4.9509,201.98,201.93,0.6837]
[1739064425893,20.0,201.96,201.93,0.6837]
[1739064426196,0.03,201.99,201.93,0.6837]
[1739064426197,16.72565215,201.94,201.93,0.063]
[1739064426704,11.77375215,201.9,201.89,0.063]
[1739064427467,11.77375215,201.9,201.77,13.13303329]
[1739064427468,13.41184853,201.83,201.76,7.44932622]
[1739064427666,11.77375215,201.79,201.78,7.44932622]
[1739064427896,11.77375215,201.81,201.78,7.44932622]
[1739064428098,20.0,201.82,201.78,7.44932622]
[1739064428271,24.9549,201.82,201.78,7.44932622]
[1739064429089,36.72865215,201.82,201.78,7.44932622]
[1739064429397,24.9549,201.82,201.78,7.44932622]
[1739064429573,36.72865215,201.82,201.78,7.44932622]
[1739064430691,36.72865215,201.82,201.75,0.063]
[1739064430899,11.77375215,201.8,201.75,0.063]
[1739064431294,36.72865215,201.82,201.75,11.83675215]
[1739064431517,4.9546,201.84,201.78,11.77375215]
[1739064432105,16.72835215,201.84,201.77,11.77375215]
[1739064432498,20.0,201.83,201.78,11.77375215]
[1739064432997,20.0,201.83,201.77,11.77375215]
[1739064434690,31.77375215,201.83,201.76,11.77375215]
[1739064434999,24.9548,201.83,201.77,11.77375215]
[1739064435386,4.9548,201.83,201.77,11.77375215]
[1739064435897,11.77375215,201.84,201.77,11.77375215]
[1739064436678,20.0,201.84,201.77,11.77375215]
[1739064436878,20.0,201.84,201.77,11.83675215]
[1739064437098,4.9546,201.83,201.78,11.77375215]
[1739064437288,4.9546,201.83,201.77,11.83675215]
[1739064437580,11.77375215,201.89,201.82,11.77375215]
[1739064437787,24.95495215,201.9,201.83,11.77375215]
[1739064438096,13.66282853,201.89,201.83,11.77375215]
[1739064438286,11.77375215,201.86,201.79,11.77375215]
[1739064438600,11.77375215,201.85,201.77,11.83675215]
[1739064439602,11.77375215,201.83,201.77,0.063]
[1739064439783,11.77375215,201.82,201.77,0.063]
[1739064439975,11.77375215,201.79,201.77,0.063]
[1739064440178,11.77375215,201.78,201.77,0.063]
[1739064440485,25.18560068,201.78,201.77,0.063]
[1739064440684,0.25098,201.76,201.72,0.063]
[1739064440873,11.77375215,201.73,201.72,0.063]
[1739064441073,31.77375215,201.74,201.72,0.063]
[1739064441581,11.77375215,201.75,201.72,0.063]
[1739064441790,12.77375215,201.8,201.73,11.77375215]
[1739064441791,12.7676,201.79,201.73,11.77375215]
[1739064441996,6.2436,201.79,201.74,11.77375215]
[1739064442187,6.2436,201.79,201.75,11.77375215]
[1739064442399,11.1992,201.79,201.74,11.77375215]
[1739064442606,11.1992,201.79,201.73,11.77375215]
[1739064442783,11.77375215,201.78,201.72,0.063]
[1739064442977,11.77375215,201.77,201.72,0.063]
[1739064443188,11.77375215,201.76,201.72,0.063]
[1739064443387,11.77375215,201.74,201.72,0.063]
[1739064443718,11.77375215,201.73,201.72,0.063]
[1739064445005,16.73085215,201.73,201.72,0.063]
[1739064445998,30.14270068,201.73,201.72,0.063]
[1739064447881,20.0,201.7,201.69,0.063]
[1739064448087,20.0,201.67,201.57,16.79755215]
[1739064448296,11.77375215,201.63,201.57,5.0238]
[1739064448489,11.77375215,201.64,201.57,11.83675215]
[1739064448785,11.77375215,201.65,201.57,11.83675215]
[1739064449183,11.77375215,201.65,201.57,16.79775215]
[1739064449517,11.77375215,201.65,201.58,11.77375215]
[1739064450315,16.73305215,201.64,201.57,11.83675215]
[1739064451316,25.80714853,201.69,201.6,11.77375215]
[1739064451317,4.959,201.66,201.6,11.77375215]
[1739064451491,4.9585,201.68,201.62,11.77375215]
[1739064454417,4.9585,201.68,201.61,11.77375215]
[1739064454709,18.33803215,201.72,201.65,11.77375215]
[1739064455020,4.9576,201.71,201.65,11.77375215]
[1739064455492,16.73135215,201.71,201.64,11.77375215]
[1739064456198,4.9576,201.71,201.65,11.77375215]
[1739064459718,16.73135215,201.71,201.65,11.77375215]
[1739064460523,16.73135215,201.71,201.64,11.77375215]
[1739064460722,11.77375215,201.7,201.64,11.77375215]
[1739064463516,11.77375215,201.69,201.63,11.77375215]
[1739064463716,11.77375215,201.67,201.6,11.77375215]
[1739064464927,11.77375215,201.68,201.61,11.77375215]
[1739064465100,16.73205215,201.69,201.62,11.77375215]
[1739064467005,16.73205215,201.69,201.63,11.77375215]
[1739064467308,4.9583,201.69,201.63,11.77375215]
[1739064467496,18.37014853,201.69,201.63,11.77375215]
[1739064467918,4.9583,201.69,201.64,11.77375215]
[1739064468123,4.9579,201.7,201.65,11.77375215]
[1739064468424,4.9579,201.7,201.64,11.77375215]
[1739064468722,16.73165215,201.7,201.63,11.77375215]
[1739064469724,4.9579,201.7,201.64,11.77375215]
[1739064469906,0.03,201.71,201.68,11.77375215]
[1739064470294,0.03,201.71,201.66,11.77375215]
[1739064470503,4.9876,201.71,201.65,11.77375215]
[1739064470735,16.76135215,201.71,201.63,11.77375215]
[1739064470896,16.76135215,201.71,201.64,11.77375215]
[1739064472333,4.9876,201.71,201.65,11.77375215]
[1739064473127,4.9876,201.71,201.66,11.77375215]
[1739064473626,0.03,201.7,201.66,11.77375215]
[1739064474312,0.03,201.7,201.65,11.77375215]
[1739064474505,0.03,201.7,201.66,11.77375215]
[1739064475025,0.03,201.7,201.65,11.77375215]
[1739064475510,0.03,201.7,201.66,11.77375215]
[1739064475707,0.03,201.7,201.67,11.77375215]
[1739064476117,0.03,201.7,201.68,11.77375215]
[1739064476311,0.03,201.7,201.69,11.77375215]
[1739064477424,0.03,201.7,201.69,16.73185215]
[1739064479914,0.03,201.7,201.69,28.5056043]
[1739064480617,0.03,201.7,201.69,29.24903452]
[1739064482506,0.03,201.7,201.69,16.73185215]
[1739064488452,0.03,201.71,201.69,28.5056043]
[1739064488620,6.5877,201.82,201.7,24.29087016]
[1739064488823,6.5877,201.82,201.79,11.77375215]
[1739064490648,6.5877,201.82,201.8,11.77375215]
[1739064490827,0.03,201.86,201.81,11.77375215]
[1739064491845,0.03,201.86,201.8,11.77375215]
[1739064492941,0.03,201.86,201.73,12.3925]
[1739064492942,0.03,201.86,201.81,11.77375215]
[1739064494328,0.03,201.86,201.8,11.77375215]
[1739064495323,25.46658068,201.86,201.79,11.77375215]
[1739064495525,11.77375215,201.83,201.76,11.77375215]
[1739064495730,11.77375215,201.84,201.77,11.77375215]
[1739064495929,11.77375215,201.85,201.78,11.77375215]
[1739064496636,0.03,201.86,201.8,11.77375215]
[1739064496956,11.77375215,201.85,201.78,11.77375215]
[1739064497555,16.72795215,201.85,201.78,16.72955215]
[1739064497853,11.77375215,201.81,201.74,11.77375215]
[1739064498621,4.9542,201.85,201.79,11.77375215]
[1739064499446,11.80375215,201.86,201.8,11.77375215]
[1739064499447,0.03,201.86,201.8,11.77375215]
[1739064499644,0.03,201.83,201.8,16.72905215]
[1739064500862,0.03,201.83,201.82,11.77375215]
[1739064501052,0.03,201.83,201.81,11.77375215]
[1739064501223,0.03,201.83,201.82,11.77375215]
[1739064503056,0.03,201.83,201.82,16.72865215]
[1739064505555,0.03,201.83,201.78,16.72935215]
[1739064505942,0.03,201.83,201.77,11.77375215]
[1739064506530,0.03,201.83,201.78,11.77375215]
[1739064508150,0.03,201.83,201.82,11.77375215]
[1739064512474,0.03,201.83,201.81,11.77375215]
[1739064513565,0.03,201.83,201.82,11.77375215]
[1739064514940,0.03,201.83,201.82,16.72865215]
[1739064518767,0.03,201.83,201.82,7.54688758]
[1739064520463,0.03,201.83,201.82,12.50178758]
[1739064522271,0.03,201.86,201.82,25.63207717]
[1739064522471,0.03,201.86,201.85,7.54688758]
[1739064523852,0.03,201.86,201.85,12.50098758]
[1739064524659,0.03,201.86,201.85,7.54688758]
[1739064524871,0.03,201.86,201.83,7.54688758]
[1739064526247,0.03,201.86,201.83,12.50128758]
[1739064527679,0.03,201.86,201.84,7.54688758]
[1739064529675,0.03,201.86,201.85,7.54688758]
[1739064530077,0.03,201.86,201.84,7.54688758]
[1739064530371,9.11838758,201.86,201.79,7.54688758]
[1739064530572,7.54688758,201.83,201.77,12.50298758]
[1739064530782,7.54688758,201.83,201.77,7.54688758]
[1739064530957,7.54688758,201.83,201.76,7.54688758]
[1739064531380,7.54688758,201.81,201.74,7.54688758]
[1739064531561,6.1675,201.84,201.74,7.54688758]
[1739064531562,7.54688758,201.8,201.74,7.54688758]
[1739064532958,7.54688758,201.79,201.72,7.54688758]
[1739064533156,7.54688758,201.77,201.71,7.60988758]
[1739064533464,1.5415,201.78,201.74,7.54688758]
[1739064533671,7.54688758,201.76,201.71,0.063]
[1739064533985,13.71438758,201.75,201.71,0.063]
[1739064534280,7.54688758,201.73,201.71,0.063]
[1739064534669,11.81188185,201.73,201.71,0.063]
[1739064535585,17.97938185,201.75,201.71,0.063]
[1739064536251,22.93598185,201.75,201.71,0.063]
[1739064537379,11.81188185,201.73,201.71,0.063]
[1739064538256,31.81188185,201.72,201.71,0.063]
[1739064538473,20.0,201.72,201.71,0.063]
[1739064539782,36.76918185,201.72,201.71,0.063]
[1739064540981,24.9573,201.72,201.71,0.063]
[1739064541159,20.0,201.72,201.71,0.063]
[1739064541574,22.93618185,201.75,201.71,0.063]
[1739064541788,11.81188185,201.74,201.71,0.063]
[1739064542276,11.81188185,201.73,201.71,0.063]
[1739064542476,11.81188185,201.72,201.71,0.063]
[1739064542664,31.81188185,201.72,201.71,0.063]
[1739064544165,50.43201038,201.72,201.71,0.063]
[1739064544962,38.62012853,201.72,201.71,0.063]
[1739064545479,6.1675,201.75,201.71,0.063]
[1739064545677,6.1675,201.75,201.71,11.87488185]
[1739064545869,1.66699,201.78,201.73,11.81188185]
[1739064547088,1.5415,201.78,201.74,11.81188185]
[1739064547290,20.0,201.77,201.75,11.81188185]
[1739064547495,1.5415,201.78,201.76,11.81188185]
[1739064547665,1.5415,201.78,201.74,11.81188185]
[1739064548489,6.0248,201.8,201.74,11.81188185]
[1739064549192,6.0248,201.8,201.75,11.81188185]
[1739064550695,18.61842853,201.79,201.73,11.81188185]
[1739064551396,6.0248,201.8,201.74,11.81188185]
[1739064552597,0.12549,201.79,201.74,11.81188185]
[1739064552784,13.66282853,201.79,201.73,11.81188185]
[1739064554303,18.61842853,201.79,201.73,11.81188185]
[1739064554994,6.0248,201.8,201.73,11.81188185]
[1739064555192,6.0248,201.8,201.74,11.81188185]
[1739064556101,1.6566,201.83,201.79,11.81188185]
[1739064556400,1.6566,201.83,201.81,11.81188185]
[1739064556600,10.979,201.85,201.8,7.54925741]
[1739064556902,10.979,201.85,201.79,7.54925741]
[1739064557090,10.979,201.85,201.78,7.54925741]
[1739064557675,21.21208594,201.84,201.76,7.54925741]
[1739064558096,13.66282853,201.84,201.77,7.54925741]
[1739064558600,13.66282853,201.84,201.77,11.79896081]
[1739064559293,0.25098,201.82,201.77,11.79896081]
[1739064560801,13.41184853,201.81,201.77,11.79896081]
[1739064561112,13.41184853,201.81,201.76,11.79896081]
[1739064563010,13.41184853,201.81,201.77,11.79896081]
[1739064564802,0.03,201.83,201.78,11.79896081]
[1739064565005,0.03,201.83,201.79,11.79896081]
[1739064565394,0.03,201.83,201.78,11.79896081]
[1739064565589,13.53733853,201.82,201.76,11.79896081]
[1739064565803,13.53733853,201.82,201.75,11.79896081]
[1739064565996,25.33629934,201.82,201.75,11.79896081]
[1739064566202,13.53733853,201.82,201.75,11.79896081]
[1739064566784,13.41184853,201.81,201.75,16.75556081]
[1739064567596,18.49233853,201.82,201.75,16.75556081]
[1739064567905,13.41184853,201.81,201.76,11.79896081]
[1739064569324,4.955,201.82,201.76,16.75526081]
[1739064569507,13.53733853,201.81,201.77,11.79896081]
[1739064570307,0.03,201.83,201.79,11.79896081]
[1739064571295,0.03,201.83,201.79,16.75446081]
[1739064571615,0.03,201.83,201.82,11.79896081]
[1739064573017,0.03,201.83,201.82,16.75386081]
[1739064575811,0.03,201.83,201.82,11.79896081]
[1739064576507,0.03,201.86,201.83,1.97]
[1739064578223,0.03,201.86,201.83,18.72356081]
[1739064578413,0.03,201.86,201.84,11.79896081]
[1739064578721,0.03,201.86,201.85,7.54272311]
[1739064579393,0.03,201.86,201.85,8.28565649]
[1739064579793,13.66282853,201.97,201.91,1.85]
[1739064580010,18.61402853,201.97,201.91,9.39272311]
[1739064580724,18.61402853,201.97,201.91,13.63280122]
[1739064581096,6.0801,201.98,201.91,13.63280122]
[1739064581302,6.0801,201.98,201.91,18.58530122]
[1739064581507,11.0311,201.98,201.91,18.58530122]
[1739064582020,6.0801,201.98,201.91,18.58530122]
[1739064582322,6.0801,201.98,201.93,11.78280122]
[1739064583515,11.78280122,201.97,201.91,1.85]
[1739064584300,6.0801,201.98,201.92,11.78280122]
[1739064584501,6.1101,201.98,201.91,18.58540122]
[1739064584820,11.061,201.98,201.91,18.58540122]
[1739064585801,6.1101,201.98,201.91,18.58540122]
[1739064586121,4.2601,201.98,201.91,16.73540122]
[1739064586427,9.2111,201.98,201.91,16.73540122]
[1739064587133,20.99390122,201.98,201.91,16.73540122]
[1739064587931,11.78280122,201.97,201.9,11.78280122]
[1739064588233,11.78280122,201.97,201.89,11.78280122]
[1739064589035,16.73410122,201.97,201.89,16.73580122]
[1739064590121,11.78280122,201.94,201.87,11.78280122]
[1739064590614,11.78280122,201.95,201.87,11.78280122]
[1739064591299,16.73470122,201.95,201.87,16.73630122]
[1739064592236,16.73470122,201.95,201.88,11.78280122]
[1739064592613,11.78280122,201.94,201.87,11.78280122]
[1739064592817,11.78280122,201.93,201.86,11.78280122]
[1739064593217,11.78280122,201.94,201.86,11.78280122]
[1739064594141,16.73490122,201.94,201.86,16.73660122]
[1739064594430,11.78280122,201.93,201.86,16.73660122]
[1739064595745,16.73490122,201.94,201.87,11.78280122]
[1739064595908,4.9521,201.94,201.87,11.78280122]
[1739064596108,4.9521,201.94,201.88,11.78280122]
[1739064596538,16.73490122,201.94,201.86,16.79960122]
[1739064599949,16.73490122,201.94,201.86,11.84580122]
[1739064600118,11.78280122,201.91,201.86,0.063]
[1739064600848,13.42770122,201.91,201.86,0.063]
[1739064602127,4.9529,201.9,201.86,0.063]
[1739064602327,11.78280122,201.89,201.86,0.063]
[1739064602638,7.54749919,201.89,201.86,0.063]
[1739064602850,21.21032772,201.87,201.86,0.063]
[1739064603025,7.54749919,201.81,201.79,0.063]
[1739064603524,7.54749919,201.83,201.79,0.063]
[1739064604364,1.6449,201.86,201.8,7.54749919]
[1739064604553,1.6449,201.86,201.81,7.54749919]
[1739064604723,1.6449,201.86,201.83,7.54749919]
[1739064605030,1.6449,201.86,201.82,7.54749919]
[1739064605447,1.6449,201.86,201.83,7.54749919]
[1739064606652,4.9531,201.9,201.84,7.54749919]
[1739064606884,1.6314,201.91,201.86,7.54749919]
[1739064607344,6.5841,201.91,201.86,7.54749919]
[1739064607515,6.5841,201.91,201.85,7.54749919]
[1739064607721,1.6314,201.91,201.85,7.54749919]
[1739064608129,6.5841,201.91,201.85,7.54749919]
[1739064608526,21.21032772,201.9,201.82,7.54749919]
[1739064608728,7.54749919,201.87,201.8,0.063]
[1739064609757,7.54749919,201.88,201.8,7.61049919]
[1739064611060,4.9536,201.87,201.81,7.54749919]
[1739064611232,6.5841,201.91,201.84,7.54749919]
[1739064611559,6.5841,201.91,201.85,7.54749919]
[1739064612060,1.6314,201.91,201.85,7.54749919]
[1739064612225,1.6314,201.91,201.87,7.54749919]
[1739064612429,6.0561,201.92,201.87,7.54749919]
[1739064612931,6.0561,201.92,201.86,7.54749919]
[1739064614533,6.0561,201.92,201.86,12.50129919]
[1739064614734,6.0561,201.92,201.86,16.74193372]
[1739064615563,6.0561,201.92,201.82,0.74297171]
[1739064615564,17.84423372,201.92,201.84,11.78813372]
[1739064615857,11.78813372,201.9,201.82,11.78813372]
[1739064616550,17.84423372,201.92,201.84,11.78813372]
[1739064616739,6.0561,201.92,201.86,11.78813372]
[1739064617368,6.0561,201.92,201.88,11.78813372]
[1739064617536,13.41953372,201.96,201.88,11.78813372]
[1739064617867,1.6314,201.96,201.9,11.78813372]
[1739064618369,1.6314,201.96,201.92,11.78813372]
[1739064618662,6.5898,201.97,201.92,16.74033372]
[1739064620463,6.5898,201.97,201.92,11.78813372]
[1739064620648,6.5898,201.97,201.91,11.78813372]
[1739064622438,6.5898,201.97,201.91,16.74073372]
[1739064622764,6.5898,201.97,201.91,11.78813372]
[1739064622965,11.78813372,201.94,201.86,11.78813372]
[1739064623144,11.78813372,201.91,201.84,11.78813372]
[1739064623342,11.78813372,201.89,201.82,11.85113372]
[1739064623560,11.78813372,201.88,201.82,0.063]
[1739064623734,11.78813372,201.89,201.82,0.063]
[1739064623939,11.78813372,201.9,201.82,16.80603372]
[1739064624462,16.74123372,201.9,201.82,16.80603372]
[1739064625343,11.78813372,201.89,201.82,11.85113372]
[1739064625867,11.78813372,201.88,201.82,0.063]
[1739064626045,11.78813372,201.89,201.82,0.063]
[1739064626449,16.74143372,201.89,201.82,0.063]
[1739064627670,16.74143372,201.89,201.82,11.85113372]
[1739064628573,11.78813372,201.91,201.83,11.78813372]
[1739064628780,4.9529,201.91,201.84,11.78813372]
[1739064629465,13.40753372,201.92,201.86,11.78813372]
[1739064629466,1.6194,201.92,201.86,11.78813372]
[1739064629668,11.78813372,201.95,201.88,11.78813372]
[1739064629871,20.01653372,201.97,201.9,11.78813372]
[1739064630176,4.9517,201.96,201.91,11.78813372]
[1739064631071,4.9517,201.96,201.89,11.78813372]
[1739064632081,8.2284,201.97,201.9,11.78813372]
[1739064632244,6.5898,201.97,201.91,11.78813372]
[1739064632751,6.5898,201.97,201.92,11.78813372]
[1739064633367,0.03,201.98,201.93,11.78813372]
[1739064634661,0.03,201.98,201.92,16.74043372]
[1739064635481,0.03,201.98,201.91,11.78813372]
[1739064635482,11.81813372,201.98,201.91,11.78813372]
[1739064635975,11.78813372,201.94,201.86,11.78813372]
[1739064636158,11.78813372,201.95,201.88,11.78813372]
[1739064636857,31.78813372,201.96,201.88,11.78813372]
[1739064637277,36.73953372,201.96,201.88,16.74153372]
[1739064637473,4.9514,201.96,201.9,11.78813372]
[1739064637672,16.76933372,201.98,201.91,11.78813372]
[1739064638377,4.9812,201.98,201.91,11.78813372]
[1739064638575,4.9812,201.98,201.92,11.78813372]
[1739064639780,0.03,201.98,201.92,11.78813372]
[1739064640484,11.81813372,201.98,201.91,11.78813372]
[1739064640656,0.03,201.98,201.91,16.74073372]
[1739064640859,0.03,201.98,201.93,11.78813372]
[1739064641053,0.03,201.98,201.94,11.78813372]
[1739064641990,0.03,201.98,201.94,16.73993372]
[1739064642566,11.78813372,201.96,201.89,11.78813372]
[1739064644186,4.9517,201.95,201.87,11.78813372]
[1739064644406,11.78813372,201.94,201.87,11.78813372]
[1739064644962,11.78813372,201.96,201.87,16.74163372]
[1739064647069,4.9517,201.95,201.87,16.74163372]
[1739064648293,16.73953372,201.97,201.89,11.78813372]
[1739064648480,16.73953372,201.97,201.9,11.78813372]
[1739064649093,0.03,201.98,201.93,11.78813372]
[1739064649470,0.03,201.98,201.94,11.78813372]
[1739064650587,11.78813372,201.95,201.88,11.78813372]
[1739064652107,16.73983372,201.95,201.88,16.74153372]
[1739064653485,4.9517,201.95,201.89,11.78813372]
[1739064654102,16.73953372,201.96,201.89,11.78813372]
[1739064654597,11.78813372,201.95,201.87,11.78813372]
[1739064655500,16.74003372,201.95,201.88,11.78813372]
[1739064656079,4.9519,201.95,201.89,11.78813372]
[1739064656290,11.78813372,201.96,201.89,11.78813372]
[1739064656291,4.9515,201.96,201.89,11.78813372]
[1739064657207,4.9515,201.96,201.9,11.78813372]
[1739064657501,16.73933372,201.97,201.9,16.74103372]
[1739064658199,11.78813372,201.96,201.89,11.78813372]
[1739064658404,17.98493372,201.95,201.87,11.78813372]
[1739064658570,17.98493372,201.95,201.86,11.85113372]
[1739064658571,11.78813372,201.94,201.86,11.85113372]
[1739064658777,11.78813372,201.91,201.86,0.063]
[1739064659500,16.74103372,201.91,201.86,0.063]
[1739064660501,11.78813372,201.9,201.86,0.063]
[1739064660917,11.78813372,201.89,201.86,0.063]
[1739064661286,6.1968,201.87,201.86,0.063]
[1739064661488,11.1504,201.87,201.86,0.063]
[1739064662518,11.27589,201.87,201.86,0.063]